[Event "FIDE World School-ch O-9 2025"]
[Site "Vrnjacka Banja"]
[Date "2025.03.20"]
[Round "1.1"]
[White "Sairan, Dinmukhammed"]
[Black "Ulan, Rizat"]
[Result "0-1"]
[Annotator "NA RC"]
[ECO "B22"]
[WhiteElo "1501"]
[BlackElo "1769"]
[PlyCount "102"]
[EventDate "2025.03.19"]
[EventType "swiss"]
[EventCountry "SRB"]
[SourceTitle "playchess.com"]
[Source "ChessBase"]
[SourceQuality "1"]
[TimeControl "5400+30"]

1. e4 {[%emt 1:31:00]} c5 {[%emt 0:00:04]} 2. c3 {[%emt 0:00:00]} Nf6 {[%emt 0:00:11]} 3. e5 {[%emt 0:00:00]} Nd5 {[%emt 0:00:09]} 4. d4 {[%emt 0:00:00]} cxd4 {[%emt 0:00:30]} 5. cxd4 {[%emt 0:00:00]} d6 {[%emt 0:00:12]} 6. Nf3 {[%emt 0:00:00]} Nc6 {[%emt 0:00:09]} 7. Bb5 {[%emt 0:00:00]} Qa5+ {[%emt 0:00:34]} 8. Nc3 {[%emt 0:00:00]} Nxc3 {[%emt 0:01:05]} 9. Bxc6+ {[%emt 0:00:00]} bxc6 {[%emt 0:00:04]} 10. bxc3 {[%emt 0:00:00]} Qxc3+ {[%emt 0:01:11]} 11. Bd2 {[%emt 0:00:00]} Qd3 {[%emt 0:00:51]} 12. Rc1 {[%emt 0:00:00]} Be6 {[%emt 0:07:13]} 13. Qa4 {[%emt 0:00:00]} Bd5 {[%emt 0:02:09]} 14. Be3 {[%emt 0:00:00]} Qb5 {[%emt 0:05:27]} 15. Qc2 {[%emt 0:00:00]} e6 {[%emt 0:03:39]} 16. Qe2 {[%emt 0:00:00]} Be7 {[%emt 0:06:37]} 17. Qxb5 {[%emt 0:00:00]} cxb5 {[%emt 0:00:06]} 18. Rc7 {[%emt 0:00:00]} dxe5 {[%emt 0:01:46]} 19. Nxe5 {[%emt 0:00:00]} Bd6 {[%emt 0:01:07]} 20. Rc2 {[%emt 0:00:00]} f6 {[%emt 0:05:16]} 21. Nf3 {[%emt 0:00:00]} Kd7 {[%emt 0:00:09]} 22. O-O {[%emt 0:00:00]} Rac8 {[%emt 0:00:05]} 23. Rfc1 {[%emt 0:00:00]} Rxc2 {[%emt 0:00:07]} 24. Rxc2 {[%emt 0:00:00]} Rc8 {[%emt 0:00:14]} 25. Rb2 {[%emt 0:00:00]} a6 {[%emt 0:00:48]} 26. Nd2 {[%emt 0:00:00]} Rc1+ {[%emt 0:00:31]} 27. Nf1 {[%emt 0:00:00]} Ra1 {[%emt 0:00:04]} 28. f3 {[%emt 0:00:00]} Bc4 {[%emt 0:00:16]} 29. Rf2 {[%emt 0:00:00]} Bxf1 {[%emt 0:00:05]} 30. Rxf1 {[%emt 0:00:00]} Bxh2+ {[%emt 0:00:00]} 31. Kf2 {[%emt 0:00:00]} Rxa2+ {[%emt 0:00:05]} 32. Ke1 {[%emt 0:00:00]} Bg3+ {[%emt 0:00:05]} 33. Kd1 {[%emt 0:00:00]} Ra1+ {[%emt 0:00:01]} 34. Ke2 {[%emt 0:00:00]} Rxf1 {[%emt 0:00:10]} 35. Kxf1 {[%emt 0:00:00]} Kc6 {[%emt 1:07:00]} 36. Ke2 {[%emt 0:00:00]} Kd5 {[%emt 0:00:00]} 37. Kd3 {[%emt 0:00:00]} b4 {[%emt 0:00:00]} 38. Bd2 {[%emt 0:00:00]} a5 {[%emt 0:00:00]} 39. Be3 {[%emt 0:00:00]} a4 {[%emt 0:00:00]} 40. Bd2 {[%emt 0:00:00]} Bd6 {[%emt 0:00:00]} 41. g4 {[%emt 0:00:00]} a3 {[%emt 0:00:00]} 42. Bc1 {[%emt 0:00:00]} Bf4 {[%emt 0:00:00]} 43. Bxf4 {[%emt 0:00:00]} a2 {[%emt 0:00:00]} 44. Bd2 {[%emt 0:00:00]} a1=Q {[%emt 0:00:00]} 45. Bxb4 {[%emt 0:00:00]} Qb1+ {[%emt 0:00:00]} 46. Kc3 {[%emt 0:00:00]} Qc1+ {[%emt 0:00:00]} 47. Kb3 {[%emt 0:00:00]} Qc4+ {[%emt 0:00:00]} 48. Ka4 {[%emt 0:00:00]} Qd3 {[%emt 0:06:30]} 49. f4 {[%emt 0:00:00]} Kc4 {[%emt 0:00:00]} 50. Ba3 {[%emt 0:00:00]} Qb3+ {[%emt 0:00:00]} 51. Ka5 {[%emt 0:00:00]} Qb5# {[%emt 0:00:00]} 0-1

[Event "FIDE World School-ch O-9 2025"]
[Site "Vrnjacka Banja"]
[Date "2025.03.20"]
[Round "1.2"]
[White "Nematillakhonov, Nurmuhammad"]
[Black "Jovanovski, Jovan"]
[Result "1-0"]
[Annotator "NA RC"]
[ECO "E01"]
[WhiteElo "1767"]
[BlackElo "1493"]
[PlyCount "55"]
[EventDate "2025.03.19"]
[EventType "swiss"]
[EventCountry "SRB"]
[SourceTitle "playchess.com"]
[Source "ChessBase"]
[SourceQuality "1"]
[TimeControl "5400+30"]

1. d4 {[%emt 0:00:42]} d5 {[%emt 0:00:08]} 2. c4 {[%emt 0:01:26]} e6 {[%emt 0:00:25]} 3. Nf3 {[%emt 0:00:16]} Nf6 {[%emt 0:00:23]} 4. g3 {[%emt 0:00:11]} Bd6 {[%emt 0:01:27]} 5. Bg2 {[%emt 0:01:48]} dxc4 {[%emt 0:02:41]} 6. Nfd2 {[%emt 0:01:09]} e5 {[%emt 0:02:42]} 7. dxe5 {[%emt 0:06:39]} Bxe5 {[%emt 0:00:50]} 8. Nxc4 {[%emt 0:00:14]} Qxd1+ {[%emt 0:00:40]} 9. Kxd1 {[%emt 0:00:15]} Bd6 {[%emt 0:00:18]} 10. Nxd6+ {[%emt 0:06:52]} cxd6 {[%emt 0:00:31]} 11. Nc3 {[%emt 0:00:34]} a6 {[%emt 0:01:03]} 12. Na4 {[%emt 0:04:19]} Nc6 {[%emt 0:01:37]} 13. Nb6 {[%emt 0:01:28]} Rb8 {[%emt 0:00:16]} 14. Bf4 {[%emt 0:00:46]} O-O {[%emt 0:00:47]} 15. Rc1 {[%emt 0:02:58]} Ng4 {[%emt 0:00:44]} 16. Ke1 {[%emt 0:05:12]} Rd8 {[%emt 0:01:27]} 17. Nxc8 {[%emt 0:05:11]} Rbxc8 {[%emt 0:01:14]} 18. Bh3 {[%emt 0:00:23]} f5 {[%emt 0:01:27]} 19. f3 {[%emt 0:00:09]} Nf6 {[%emt 0:01:24]} 20. Bxf5 {[%emt 0:00:20]} Rc7 {[%emt 0:00:49]} 21. Kf2 {[%emt 0:01:11]} Re7 {[%emt 0:00:23]} 22. Bd3 {[%emt 0:02:30]} Nd4 {[%emt 0:01:37]} 23. Be3 {[%emt 0:05:24]} Ne6 {[%emt 0:01:30]} 24. Bb6 {[%emt 0:52:33]} Rf8 {[%emt 1:18:07]} 25. Kg2 Nd5 26. Bf2 Rfe8 {[%emt 0:00:00]} 27. Bc4 {[%emt 0:00:00]} Nb6 {[%emt 0:00:00]} 28. Bxb6 {[%emt 0:00:00]} 1-0

[Event "FIDE World School-ch O-9 2025"]
[Site "Vrnjacka Banja"]
[Date "2025.03.20"]
[Round "1.3"]
[White "Tokmachov, Daniel"]
[Black "Wee, Yu Heng Lucas John"]
[Result "0-1"]
[Annotator "NA RC"]
[ECO "B33"]
[WhiteElo "1493"]
[BlackElo "1680"]
[PlyCount "76"]
[EventDate "2025.03.19"]
[EventType "swiss"]
[EventCountry "SRB"]
[SourceTitle "playchess.com"]
[Source "ChessBase"]
[SourceQuality "1"]
[TimeControl "5400+30"]

1. e4 {[%emt 0:00:02]} c5 {[%emt 0:00:06]} 2. Nf3 {[%emt 0:00:16]} Nc6 {[%emt 0:00:07]} 3. d4 {[%emt 0:00:11]} cxd4 {[%emt 0:00:08]} 4. Nxd4 {[%emt 0:00:08]} Nf6 {[%emt 0:00:06]} 5. Nc3 {[%emt 0:00:16]} e5 {[%emt 0:00:06]} 6. Nf3 {[%emt 0:00:49]} Bb4 {[%emt 0:00:19]} 7. Bd3 {[%emt 0:03:06]} O-O {[%emt 0:01:13]} 8. O-O {[%emt 0:00:43]} d6 {[%emt 0:01:30]} 9. Bg5 {[%emt 0:00:53]} Bxc3 {[%emt 0:01:57]} 10. bxc3 {[%emt 0:00:10]} h6 {[%emt 0:01:28]} 11. Bh4 {[%emt 0:02:20]} Bg4 {[%emt 0:03:46]} 12. Be2 {[%emt 0:02:08]} g5 {[%emt 0:06:10]} 13. Nxg5 {[%emt 0:06:26]} Bxe2 {[%emt 0:11:22]} 14. Qxe2 {[%emt 0:00:13]} hxg5 {[%emt 0:00:16]} 15. Bxg5 {[%emt 0:00:09]} Re8 {[%emt 0:04:17]} 16. f4 {[%emt 0:02:15]} Re6 {[%emt 0:02:21]} 17. fxe5 {[%emt 0:02:18]} Nxe5 {[%emt 0:02:26]} 18. Rf2 {[%emt 0:05:04]} Qb6 {[%emt 0:01:36]} 19. Kh1 {[%emt 0:01:39]} Nxe4 {[%emt 0:01:43]} 20. Rf5 {[%emt 0:00:20]} Nxg5 {[%emt 0:01:10]} 21. Rxg5+ {[%emt 0:00:09]} Rg6 {[%emt 0:00:12]} 22. Rxg6+ {[%emt 0:01:05]} Nxg6 {[%emt 0:00:11]} 23. Rf1 {[%emt 0:00:10]} Qc7 {[%emt 0:00:55]} 24. h3 {[%emt 0:00:49]} Qxc3 {[%emt 0:01:23]} 25. Qe4 {[%emt 0:00:58]} Qc6 {[%emt 0:01:27]} 26. Qf5 {[%emt 0:00:51]} Qc7 {[%emt 0:00:32]} 27. Qd5 {[%emt 0:00:46]} Re8 {[%emt 0:00:23]} 28. Rf6 {[%emt 0:00:35]} Kg7 {[%emt 0:02:20]} 29. Qd4 {[%emt 0:00:11]} Re1+ {[%emt 0:01:31]} 30. Kh2 {[%emt 0:00:07]} d5+ {[%emt 0:00:49]} 31. g3 {[%emt 0:00:11]} Qe5 {[%emt 0:03:41]} 32. Qf2 {[%emt 0:00:33]} Re2 {[%emt 0:00:28]} 33. Rxf7+ {[%emt 0:00:13]} Kh6 {[%emt 0:00:15]} 34. h4 {[%emt 0:00:46]} Rxf2+ {[%emt 0:00:49]} 35. Rxf2 {[%emt 0:00:02]} Nxh4 {[%emt 0:00:10]} 36. Kh3 {[%emt 0:00:20]} Nf5 {[%emt 0:00:15]} 37. Rg2 {[%emt 0:00:09]} Kg5 {[%emt 0:00:15]} 38. c4 {[%emt 0:00:08]} Qh8# {[%emt 0:00:09]} 0-1

[Event "FIDE World School-ch O-9 2025"]
[Site "Vrnjacka Banja"]
[Date "2025.03.20"]
[Round "1.4"]
[White "Sultankhan, Nurislam"]
[Black "Jamiyanoidovjamts, Tegshtur"]
[Result "1-0"]
[Annotator "NA RC"]
[ECO "A40"]
[WhiteElo "1649"]
[BlackElo "1489"]
[PlyCount "117"]
[EventDate "2025.03.19"]
[EventType "swiss"]
[EventCountry "SRB"]
[SourceTitle "playchess.com"]
[Source "ChessBase"]
[SourceQuality "1"]
[TimeControl "5400+30"]

1. d4 {[%emt 1:31:00]} e5 {[%emt 0:01:31]} 2. dxe5 {[%emt 0:00:30]} d6 {[%emt 0:00:53]} 3. exd6 {[%emt 0:00:00]} Bxd6 {[%emt 0:00:16]} 4. Nf3 {[%emt 0:00:00]} Nc6 {[%emt 0:00:29]} 5. e3 {[%emt 0:00:00]} Bg4 {[%emt 0:01:02]} 6. Be2 {[%emt 0:00:00]} Qe7 {[%emt 0:00:17]} 7. c3 {[%emt 0:00:00]} O-O-O {[%emt 0:03:33]} 8. Qa4 {[%emt 0:00:00]} Bd7 {[%emt 0:06:42]} 9. Qc2 {[%emt 0:00:00]} Nf6 {[%emt 0:00:45]} 10. b4 {[%emt 0:00:00]} Ne5 {[%emt 0:20:09]} 11. Nbd2 {[%emt 0:00:00]} Bc6 {[%emt 0:13:33]} 12. Bb2 {[%emt 0:00:00]} h5 {[%emt 0:22:23]} 13. h3 {[%emt 0:00:00]} g6 {[%emt 0:02:50]} 14. O-O-O {[%emt 0:00:00]} Rhe8 {[%emt 0:05:02]} 15. Nxe5 {[%emt 0:00:00]} Bxe5 {[%emt 0:00:58]} 16. Bf3 {[%emt 0:00:00]} Qe6 {[%emt 0:02:11]} 17. Bxc6 {[%emt 0:00:00]} Qxc6 {[%emt 0:00:10]} 18. Nf3 {[%emt 0:00:00]} Ne4 {[%emt 0:11:10]} 19. Rxd8+ {[%emt 0:00:00]} Kxd8 {[%emt 0:00:09]} 20. Rd1+ {[%emt 0:00:00]} Kc8 {[%emt 0:00:12]} 21. Nxe5 {[%emt 0:00:00]} Rxe5 {[%emt 0:00:10]} 22. c4 {[%emt 0:00:00]} Re6 {[%emt 0:03:04]} 23. c5 {[%emt 0:00:00]} Qb5 {[%emt 0:02:22]} 24. a3 {[%emt 0:00:00]} b6 {[%emt 0:00:39]} 25. Bd4 {[%emt 0:00:00]} f5 {[%emt 0:00:47]} 26. f3 {[%emt 0:00:00]} Ng3 {[%emt 0:00:29]} 27. Re1 {[%emt 0:00:00]} Kb7 {[%emt 0:00:42]} 28. Kb2 {[%emt 0:00:00]} a5 {[%emt 0:00:30]} 29. Qb3 {[%emt 0:00:00]} Rc6 {[%emt 0:00:34]} 30. cxb6 {[%emt 0:00:00]} cxb6 {[%emt 0:00:28]} 31. bxa5 {[%emt 0:00:00]} Qxb3+ {[%emt 0:00:05]} 32. Kxb3 {[%emt 0:00:00]} bxa5 {[%emt 0:00:03]} 33. Kb2 {[%emt 0:00:00]} Re6 {[%emt 0:00:29]} 34. Kc3 {[%emt 0:00:00]} Rc6+ {[%emt 0:00:34]} 35. Kd3 {[%emt 0:00:00]} a4 {[%emt 0:00:26]} 36. Rb1+ {[%emt 0:00:00]} Ka6 {[%emt 0:00:24]} 37. Kd2 {[%emt 0:00:00]} h4 {[%emt 0:01:27]} 38. Kd3 {[%emt 0:00:00]} Nh5 {[%emt 0:00:37]} 39. Kd2 {[%emt 0:00:00]} g5 {[%emt 0:00:26]} 40. Rb4 {[%emt 0:00:00]} Ka5 {[%emt 0:00:17]} 41. Bc3 {[%emt 0:00:00]} Nf6 {[%emt 0:00:47]} 42. Rc4+ {[%emt 0:00:00]} Kb5 {[%emt 0:00:10]} 43. Rxc6 {[%emt 0:00:00]} Kxc6 {[%emt 0:00:28]} 44. Bxf6 {[%emt 0:00:00]} g4 {[%emt 0:00:14]} 45. hxg4 {[%emt 0:00:00]} fxg4 {[%emt 0:00:05]} 46. fxg4 {[%emt 0:00:00]} Kd5 {[%emt 0:00:06]} 47. Kd3 {[%emt 0:00:00]} Ke6 {[%emt 0:00:05]} 48. Bxh4 {[%emt 0:00:00]} Ke5 {[%emt 0:00:05]} 49. Bg3+ {[%emt 0:00:00]} Kf6 {[%emt 0:00:05]} 50. Bf4 {[%emt 0:00:00]} Ke6 {[%emt 0:00:05]} 51. e4 {[%emt 0:00:00]} Kf6 {[%emt 0:00:04]} 52. e5+ {[%emt 0:00:00]} Ke6 {[%emt 0:00:09]} 53. Ke4 {[%emt 0:00:00]} Kf7 {[%emt 0:02:00]} 54. g5 {[%emt 0:00:00]} Ke7 {[%emt 0:00:06]} 55. g6 {[%emt 0:00:00]} Kf8 {[%emt 0:00:04]} 56. e6 {[%emt 0:00:00]} Ke8 {[%emt 0:00:15]} 57. g7 {[%emt 0:00:00]} Ke7 {[%emt 0:00:31]} 58. g8=Q {[%emt 0:00:00]} Kf6 {[%emt 0:00:07]} 59. Qf7# {[%emt 0:00:00]} 1-0

[Event "FIDE World School-ch O-9 2025"]
[Site "Vrnjacka Banja"]
[Date "2025.03.20"]
[Round "1.5"]
[White "Klekovkin, Aleksandr"]
[Black "Dede, Omer Taha"]
[Result "0-1"]
[Annotator "NA RC"]
[ECO "B30"]
[WhiteElo "1479"]
[BlackElo "1647"]
[PlyCount "88"]
[EventDate "2025.03.19"]
[EventType "swiss"]
[EventCountry "SRB"]
[SourceTitle "playchess.com"]
[Source "ChessBase"]
[SourceQuality "1"]
[TimeControl "5400+30"]

1. e4 {[%emt 0:00:03]} c5 {[%emt 0:02:00]} 2. Nf3 {[%emt 0:00:40]} Nc6 {[%emt 0:01:30]} 3. Bc4 {[%emt 0:00:44]} e6 {[%emt 0:01:00]} 4. Nc3 {[%emt 0:00:42]} Nge7 {[%emt 0:01:00]} 5. d3 {[%emt 0:01:59]} d5 {[%emt 0:01:00]} 6. Bb3 {[%emt 0:01:38]} g6 {[%emt 0:02:00]} 7. exd5 {[%emt 0:01:04]} exd5 {[%emt 0:01:00]} 8. Bg5 {[%emt 0:00:47]} Be6 {[%emt 0:01:30]} 9. Bf6 {[%emt 0:01:11]} Rg8 {[%emt 0:02:00]} 10. Ng5 {[%emt 0:02:13]} Qa5 {[%emt 0:12:00]} 11. Qd2 {[%emt 0:00:53]} O-O-O {[%emt 0:02:00]} 12. O-O-O {[%emt 0:04:32]} c4 {[%emt 0:02:00]} 13. Ba4 {[%emt 0:01:46]} d4 {[%emt 0:01:30]} 14. Bxc6 {[%emt 0:01:01]} dxc3 {[%emt 0:00:30]} 15. Bxb7+ {[%emt 1:18:47]} Kxb7 {[%emt 0:02:30]} 16. Qxc3 {[%emt 0:00:00]} Qxc3 {[%emt 0:00:30]} 17. Bxc3 {[%emt 0:00:00]} cxd3 {[%emt 0:00:30]} 18. Nxe6 {[%emt 0:00:00]} fxe6 {[%emt 0:00:30]} 19. Rxd3 {[%emt 0:00:00]} Rxd3 {[%emt 0:00:30]} 20. cxd3 {[%emt 0:00:00]} Bh6+ {[%emt 0:00:30]} 21. Bd2 {[%emt 0:00:00]} Rc8+ {[%emt 0:00:30]} 22. Kd1 {[%emt 0:00:00]} Bxd2 {[%emt 0:00:30]} 23. Kxd2 {[%emt 0:00:00]} Nd5 {[%emt 0:00:30]} 24. a3 {[%emt 0:00:00]} Rf8 {[%emt 0:01:30]} 25. f3 {[%emt 0:00:00]} Nf4 {[%emt 0:00:30]} 26. g3 {[%emt 0:00:00]} Nd5 {[%emt 0:00:35]} 27. Rf1 {[%emt 0:00:00]} g5 {[%emt 0:01:55]} 28. h3 {[%emt 0:00:00]} h5 {[%emt 0:02:20]} 29. Re1 {[%emt 0:00:00]} Rxf3 {[%emt 0:01:10]} 30. Rxe6 {[%emt 0:00:00]} Rxg3 {[%emt 0:00:30]} 31. Re5 {[%emt 0:00:00]} Nf4 {[%emt 0:00:50]} 32. d4 {[%emt 0:00:00]} Nxh3 {[%emt 0:02:15]} 33. d5 {[%emt 0:00:00]} Nf4 {[%emt 0:00:35]} 34. d6 {[%emt 0:00:00]} Kc6 {[%emt 0:00:50]} 35. Re7 {[%emt 0:00:00]} Kxd6 {[%emt 0:57:30]} 36. Rxa7 {[%emt 0:00:00]} h4 {[%emt 0:00:00]} 37. a4 {[%emt 0:00:00]} h3 {[%emt 0:00:00]} 38. Rh7 {[%emt 0:00:00]} Rb3 {[%emt 0:00:00]} 39. Kc2 {[%emt 0:00:00]} Re3 {[%emt 0:00:00]} 40. Kd2 {[%emt 0:00:00]} Re2+ {[%emt 0:00:00]} 41. Kc3 {[%emt 0:00:00]} h2 {[%emt 0:00:00]} 42. a5 {[%emt 0:00:00]} Re3+ {[%emt 0:00:00]} 43. Kc2 {[%emt 0:00:00]} Rh3 {[%emt 0:00:00]} 44. Rf7 {[%emt 0:00:00]} h1=Q {[%emt 0:00:00]} 0-1

[Event "FIDE World School-ch O-9 2025"]
[Site "Vrnjacka Banja"]
[Date "2025.03.20"]
[Round "1.6"]
[White "Ukhaanbileg Uranbileg"]
[Black "Marc-Antoine Ishimwe Ndagijima"]
[Result "1-0"]
[Annotator "NA RC"]
[ECO "C56"]
[WhiteElo "1645"]
[BlackElo "1474"]
[PlyCount "55"]
[EventDate "2025.03.19"]
[EventType "swiss"]
[EventCountry "SRB"]
[SourceTitle "playchess.com"]
[Source "ChessBase"]
[SourceQuality "1"]
[TimeControl "5400+30"]

1. e4 {[%emt 0:00:08]} e5 {[%emt 0:00:15]} 2. Nf3 {[%emt 0:00:09]} Nc6 {[%emt 0:00:13]} 3. d4 {[%emt 0:00:10]} exd4 {[%emt 0:00:19]} 4. Bc4 {[%emt 0:00:14]} Nf6 {[%emt 0:01:12]} 5. e5 {[%emt 0:00:28]} Ng8 {[%emt 0:00:38]} 6. O-O {[%emt 0:02:23]} d6 {[%emt 0:01:53]} 7. Ng5 {[%emt 0:02:05]} Nh6 {[%emt 0:03:35]} 8. e6 {[%emt 0:01:03]} fxe6 {[%emt 0:03:24]} 9. Bxe6 {[%emt 0:00:56]} Bxe6 {[%emt 0:05:18]} 10. Nxe6 {[%emt 0:01:01]} Qd7 {[%emt 0:01:02]} 11. Qh5+ {[%emt 0:07:54]} Qf7 {[%emt 0:01:43]} 12. Nxc7+ {[%emt 0:02:14]} Kd8 {[%emt 0:01:29]} 13. Qxf7 {[%emt 0:01:38]} Nxf7 {[%emt 0:00:27]} 14. Nxa8 {[%emt 0:00:35]} Nb4 {[%emt 0:03:46]} 15. Na3 {[%emt 0:00:29]} Kc8 {[%emt 0:00:41]} 16. Bd2 {[%emt 0:00:20]} Nc6 {[%emt 0:00:30]} 17. Rfe1 {[%emt 0:01:32]} Kb8 {[%emt 0:00:35]} 18. Re8+ {[%emt 0:00:16]} Nfd8 {[%emt 1:12:30]} 19. Bg5 {[%emt 1:16:25]} Kc8 {[%emt 0:00:00]} 20. Nb5 {[%emt 0:00:00]} h6 {[%emt 0:00:00]} 21. Bxd8 {[%emt 0:00:00]} Nxd8 {[%emt 0:00:00]} 22. Nxd6+ {[%emt 0:00:00]} Kd7 {[%emt 0:00:00]} 23. Rxd8+ {[%emt 0:00:00]} Kxd8 {[%emt 0:00:00]} 24. Nf7+ {[%emt 0:00:00]} Kc8 {[%emt 0:00:00]} 25. Nxh8 {[%emt 0:00:00]} Kb8 {[%emt 0:00:00]} 26. Re1 {[%emt 0:00:00]} Kc8 {[%emt 0:00:00]} 27. Re8+ {[%emt 0:00:00]} Kd7 {[%emt 0:00:00]} 28. Rxf8 {[%emt 0:00:00]} 1-0

[Event "FIDE World School-ch O-9 2025"]
[Site "Vrnjacka Banja"]
[Date "2025.03.21"]
[Round "2.1"]
[White "Ulan, Rizat"]
[Black "Qubaneishvili, Andria"]
[Result "1-0"]
[Annotator "NA RC"]
[ECO "C08"]
[WhiteElo "1769"]
[BlackElo "1570"]
[PlyCount "95"]
[EventDate "2025.03.19"]
[EventType "swiss"]
[EventCountry "SRB"]
[SourceTitle "playchess.com"]
[Source "ChessBase"]
[SourceQuality "1"]
[TimeControl "5400+30"]

1. e4 {[%emt 0:00:01]} e6 {[%emt 0:00:12]} 2. d4 {[%emt 0:01:34]} d5 {[%emt 0:00:22]} 3. Nd2 {[%emt 0:00:05]} c5 {[%emt 0:00:16]} 4. exd5 {[%emt 0:00:15]} exd5 {[%emt 0:00:33]} 5. Bb5+ {[%emt 0:00:17]} Bd7 {[%emt 0:01:16]} 6. Bxd7+ {[%emt 0:01:09]} Qxd7 {[%emt 0:00:18]} 7. Ngf3 {[%emt 0:00:08]} Nc6 {[%emt 0:00:18]} 8. O-O {[%emt 0:00:50]} Nf6 {[%emt 0:00:19]} 9. Re1+ {[%emt 0:00:09]} Be7 {[%emt 0:02:08]} 10. dxc5 {[%emt 0:01:05]} O-O {[%emt 0:00:18]} 11. Nb3 {[%emt 0:00:06]} Rac8 {[%emt 0:00:48]} 12. c3 {[%emt 0:03:49]} Qc7 {[%emt 0:03:01]} 13. Be3 {[%emt 0:03:44]} Nd8 {[%emt 0:01:07]} 14. Nfd4 {[%emt 0:00:50]} Ne4 {[%emt 0:04:57]} 15. Nb5 {[%emt 0:00:55]} Qd7 {[%emt 0:00:20]} 16. c4 {[%emt 0:04:30]} a6 {[%emt 0:02:12]} 17. Nc3 {[%emt 0:01:29]} Nxc3 {[%emt 0:01:21]} 18. bxc3 {[%emt 0:00:05]} Ne6 {[%emt 0:00:37]} 19. cxd5 {[%emt 0:12:42]} Nxc5 {[%emt 0:00:09]} 20. Bd4 {[%emt 0:02:50]} Rfd8 {[%emt 0:06:05]} 21. Qf3 {[%emt 0:01:14]} Bf8 {[%emt 0:00:53]} 22. Bxc5 {[%emt 0:01:47]} Bxc5 {[%emt 0:00:15]} 23. Rad1 {[%emt 0:00:02]} Bd6 {[%emt 0:00:41]} 24. g3 {[%emt 0:03:53]} Qc7 {[%emt 0:01:03]} 25. Re3 {[%emt 0:01:22]} Be5 {[%emt 0:02:08]} 26. c4 {[%emt 0:00:34]} Bd6 {[%emt 0:01:01]} 27. Rc1 {[%emt 0:03:32]} Ba3 {[%emt 0:00:38]} 28. Rc2 {[%emt 0:01:21]} Bc5 {[%emt 0:00:39]} 29. Re4 {[%emt 0:00:39]} Bf8 {[%emt 0:02:17]} 30. Rd4 {[%emt 0:07:10]} a5 {[%emt 0:02:17]} 31. c5 {[%emt 0:01:24]} Qe5 {[%emt 0:04:07]} 32. d6 {[%emt 0:02:54]} Qf6 {[%emt 0:14:36]} 33. Qxf6 {[%emt 0:01:47]} gxf6 {[%emt 0:00:08]} 34. Nxa5 {[%emt 0:00:16]} Rd7 {[%emt 0:02:09]} 35. Rdc4 {[%emt 0:05:24]} Ra8 {[%emt 0:03:26]} 36. Nb3 {[%emt 0:00:56]} Rdd8 {[%emt 0:00:40]} 37. a4 {[%emt 0:00:48]} b6 {[%emt 0:00:20]} 38. cxb6 {[%emt 0:37:54]} Bxd6 {[%emt 0:00:14]} 39. a5 {[%emt 0:00:00]} Rdb8 {[%emt 0:00:24]} 40. Rd4 {[%emt 0:00:00]} Be5 {[%emt 0:00:51]} 41. Rd5 {[%emt 0:00:00]} Kf8 {[%emt 0:00:20]} 42. Rb5 {[%emt 0:00:00]} Ke8 {[%emt 0:00:14]} 43. b7 {[%emt 0:00:00]} Ra7 {[%emt 0:00:10]} 44. Rxe5+ {[%emt 0:00:00]} Kd7 {[%emt 0:00:15]} 45. Rd5+ {[%emt 0:00:00]} Ke6 {[%emt 0:00:04]} 46. Rb5 {[%emt 0:00:00]} Raxb7 {[%emt 0:00:08]} 47. Rxb7 {[%emt 0:00:00]} Rxb7 {[%emt 0:00:13]} 48. Nc5+ {[%emt 0:00:00]} 1-0

[Event "FIDE World School-ch O-9 2025"]
[Site "Vrnjacka Banja"]
[Date "2025.03.21"]
[Round "2.2"]
[White "Zhu, Aiden"]
[Black "Nematillakhonov, Nurmuhammad"]
[Result "0-1"]
[Annotator "NA RC"]
[ECO "A22"]
[WhiteElo "1560"]
[BlackElo "1767"]
[PlyCount "53"]
[EventDate "2025.03.19"]
[EventType "swiss"]
[EventCountry "SRB"]
[SourceTitle "playchess.com"]
[Source "ChessBase"]
[SourceQuality "1"]
[TimeControl "5400+30"]

1. c4 {[%emt 0:00:14]} Nf6 {[%emt 0:01:30]} 2. g3 {[%emt 0:01:34]} e5 {[%emt 0:03:01]} 3. Nc3 {[%emt 0:00:42]} Bc5 {[%emt 0:03:17]} 4. e3 {[%emt 0:01:33]} e4 {[%emt 0:03:51]} 5. Bg2 {[%emt 0:00:25]} Qe7 {[%emt 0:00:15]} 6. Nge2 {[%emt 0:00:26]} c6 {[%emt 0:01:01]} 7. O-O {[%emt 0:02:07]} d6 {[%emt 0:00:56]} 8. d4 {[%emt 0:00:52]} Bb6 {[%emt 0:01:08]} 9. b3 {[%emt 0:02:27]} Bf5 {[%emt 0:12:46]} 10. d5 {[%emt 0:00:09]} c5 {[%emt 0:00:32]} 11. Bb2 {[%emt 0:00:33]} Nbd7 {[%emt 0:00:30]} 12. Qd2 {[%emt 0:02:15]} Ne5 {[%emt 0:04:32]} 13. Na4 {[%emt 0:02:21]} Nf3+ {[%emt 0:08:12]} 14. Bxf3 {[%emt 0:00:03]} exf3 {[%emt 0:00:01]} 15. Nec3 {[%emt 0:04:30]} Bd8 {[%emt 0:00:28]} 16. Qd1 {[%emt 0:01:45]} Bg4 {[%emt 0:00:37]} 17. Re1 {[%emt 0:00:25]} Ne4 {[%emt 0:04:09]} 18. Nxe4 {[%emt 0:01:00]} Qxe4 {[%emt 0:00:06]} 19. Qb1 {[%emt 0:00:17]} Qg6 {[%emt 0:02:23]} 20. Qxg6 {[%emt 0:00:20]} hxg6 {[%emt 0:00:02]} 21. Bxg7 {[%emt 0:00:28]} Rh3 {[%emt 0:02:12]} 22. Bc3 {[%emt 0:02:30]} Kd7 {[%emt 0:01:27]} 23. Rec1 {[%emt 0:03:31]} Bg5 {[%emt 0:01:18]} 24. Nb2 {[%emt 0:01:23]} f6 {[%emt 0:00:24]} 25. Kf1 {[%emt 0:00:35]} Rxh2 {[%emt 0:00:34]} 26. Ke1 {[%emt 0:00:17]} Bxe3 {[%emt 0:01:05]} 27. Nd1 {[%emt 0:03:26]} 0-1